fUST/lending_fUST_20260416
["ID","MTS","AMOUNT","RATE_DAILY","PERIOD"]
[420581448,1776273851646,810.0,0.00027397,120]
[420581456,1776273852861,821.25,0.00026957,120]
[420581464,1776273854190,821.25,0.00027169,120]
[420581473,1776273855576,821.25,0.0002738,120]
[420581513,1776273865961,1752.19869391,0.00027397,120]
[420581536,1776273871221,200.0,0.00026277,120]
[420581687,1776273902781,793.47420616,0.00026816,120]
[420581688,1776273916057,150.1,0.00027397,120]
[420581689,1776273986085,178.114614,7.505e-05,31]
[420581690,1776273986331,178.114614,7.505e-05,61]
[420581691,1776273986515,178.114614,7.505e-05,90]
[420581692,1776273986740,178.114614,7.505e-05,120]
[420581693,1776274009028,674.0,0.00026816,120]
[420581694,1776274050764,200.0,0.00027053,120]
[420581695,1776274093398,300.0,0.00026816,120]
[420581877,1776274116563,3050.099,0.00027397,120]
[420581878,1776274125561,516.0,0.00027397,120]
[420581879,1776274126028,257.0,0.00027397,120]
[420581880,1776274136722,952.0,0.00027397,120]
[420581881,1776274141073,1318.0,0.00027397,120]
[420582217,1776274173125,569.0,0.00027397,120]
[420582219,1776274173219,352.06928742,0.00027397,120]
[420582222,1776274173401,763.0,0.00027397,120]
[420582404,1776274180283,2294.0,0.00027397,120]
[420582473,1776274182838,10000.0,0.00027397,120]
[420582580,1776274187740,495.0,0.00027397,120]
[420582585,1776274188004,495.0,0.00027397,120]
[420582595,1776274188330,495.0,0.00027397,120]
[420582604,1776274188611,206.577,0.00027397,120]
[420582665,1776274191209,1981.0,0.00027397,120]
[420582666,1776274191295,1809.0,0.00027397,120]
[420582866,1776274201269,674.0,0.00026816,120]
[420583056,1776274211479,2388.09516957,0.00027397,120]
[420583060,1776274211691,12742.66231225,0.00027397,120]
[420583063,1776274211813,3310.0,0.00027397,120]
[420583264,1776274224601,-191.590741,3.832e-05,2]
[420583372,1776274229465,2028.70311054,0.00027397,120]
[420583387,1776274230550,239.05053268,6.901e-05,30]
[420583419,1776274231806,358.57579903,7.505e-05,30]
[420583421,1776274231862,-274.62535647,5.358e-05,2]
[420583422,1776274231873,-2027.0533749,6.901e-05,2]
[420583423,1776274231883,-324.05792064,7.358e-05,2]
[420583424,1776274231894,-178.114614,7.505e-05,2]
[420583426,1776274231910,-206.6698248,7.585e-05,2]
[420583427,1776274231922,-300.0,7.851e-05,2]
[420583428,1776274231934,-300.0,7.852e-05,2]
[420583430,1776274231950,-274.71722148,7.852e-05,2]
[420583431,1776274231987,-25.28277852,7.852e-05,2]
[420583434,1776274231999,-300.0,7.852e-05,2]
[420583435,1776274232016,-300.0,7.852e-05,2]
[420583436,1776274232027,-300.0,7.852e-05,2]
[420583438,1776274232042,-300.0,7.852e-05,2]
[420583439,1776274232059,-300.0,7.852e-05,2]
[420583441,1776274232069,-300.0,7.852e-05,2]
[420583444,1776274232086,-300.0,7.852e-05,2]
[420583446,1776274232104,-300.0,7.852e-05,2]
[420583448,1776274232114,-300.0,7.852e-05,2]
[420583451,1776274232130,-281.50032795,7.852e-05,2]
[420583457,1776274232216,-18.49967205,7.852e-05,2]
[420583460,1776274232234,-300.0,7.852e-05,2]
[420583462,1776274232251,-300.0,7.852e-05,2]
[420583464,1776274232260,-300.0,7.852e-05,2]
[420583465,1776274232275,-582.9706371,7.852e-05,2]
[420583467,1776274232299,-17.0293629,7.852e-05,2]
[420583468,1776274232312,-2000.0,8.219e-05,2]
[420583469,1776274232331,-537.6845,8.321e-05,2]
[420583471,1776274232344,-2150.738,8.321e-05,2]
[420583472,1776274232370,-557.5788265,8.376e-05,2]
[420583473,1776274232383,-578.20924308,8.431e-05,2]
[420583474,1776274232398,-666.36501151,8.479e-05,2]
[420583476,1776274232411,-599.60298507,8.486e-05,2]
[420583477,1776274232427,-621.78829552,8.541e-05,2]
[420583478,1776274232442,-644.79446246,8.596e-05,2]
[420583480,1776274232455,-420.0,8.636e-05,2]
[420583481,1776274232469,-720.0,8.637e-05,2]
[420583482,1776274232486,-668.65185757,8.651e-05,2]
[420583484,1776274232501,-693.3919763,8.706e-05,2]
[420583485,1776274232514,-719.04747942,8.761e-05,2]
[420583487,1776274232547,-745.65223616,8.816e-05,2]
[420583488,1776274232559,-151.5,8.849e-05,2]
[420583489,1776274232582,-2230.315306,8.869e-05,2]
[420583491,1776274232593,-773.2413689,8.871e-05,2]
[420583492,1776274232615,-530.69185656,8.899e-05,2]
[420583493,1776274232640,-500.0,8.899e-05,2]
[420583495,1776274232656,-408.99987152,8.899e-05,2]
[420583496,1776274232673,-349.15950264,8.899e-05,2]
[420583497,1776274232689,-600.0,8.899e-05,2]
[420583499,1776274232708,-801.85129955,8.926e-05,2]
[420583500,1776274232719,-2435.49263087,8.926e-05,2]
[420583501,1776274232733,-480.43636791,8.965e-05,2]
[420583503,1776274232751,-500.0,8.973e-05,2]
[420583504,1776274232781,-831.51979763,8.981e-05,2]
[420583505,1776274232794,-32931.25057979,9e-05,2]
[420583507,1776274232821,-426.65314757,9e-05,2]
[420583605,1776274237613,5484.21,0.00027397,120]
[420583729,1776274243168,-274.62535647,8.912e-05,2]
[420583730,1776274243182,-13113.6925036,9e-05,2]
[420583735,1776274243333,-1953.33400936,9e-05,2]
[420583816,1776274246409,-3895.2830523,9e-05,2]
[420583825,1776274246907,-6446.67896031,9e-05,2]
[420584202,1776274263533,265.0,0.00027397,120]
[420584495,1776274277065,1353.0,0.00026816,120]
[420584629,1776274284332,523.0,0.00027397,120]
[420584763,1776274291021,1720.0,0.00027397,120]
[420584801,1776274293019,2137.40365211,0.00027397,120]
[420584809,1776274293433,1244.63760935,0.00027397,120]
[420584885,1776274296547,255.24572211,0.00027397,120]
[420585028,1776274325864,605.80199094,0.00027397,120]
[420585029,1776274326450,545.22234364,0.00027397,120]
[420585030,1776274327590,248.85618743,0.00027397,120]
[420585031,1776274370444,791.0,0.00026816,120]
[420585172,1776274445296,257.0,0.00026816,120]
[420585362,1776274509357,162.0,0.00026816,120]
[420585372,1776274573835,1486.52834895,0.00027397,120]
[420585373,1776274574248,3151.0,0.00027397,120]
[420585380,1776274602081,1517.58706738,0.00027397,120]
[420585381,1776274602398,276.69086187,0.00027397,120]
[420585382,1776274606693,1690.02205847,0.00027397,120]
[420585383,1776274610236,2531.13016496,0.00027397,120]
[420585384,1776274613594,44037.86390458,0.00027,120]
[420585385,1776274616776,1039.44659517,0.00027397,120]
[420585387,1776274618260,598.97121767,0.00027397,120]
[420585388,1776274622420,227.68054353,0.00027397,120]
[420586430,1776274672104,5001.0,0.0002739,120]
[420586506,1776274682150,5428.456,0.00027397,120]
[420586508,1776274697946,3355.18938041,0.00027397,120]
[420586511,1776274700931,769.0,0.00027397,120]
[420586513,1776274702386,3237.0,0.00027397,120]
[420586514,1776274710881,200.0,0.00026393,120]
[420586515,1776274712594,1642.59,0.00025471,120]
[420586516,1776274713849,1642.5,0.00025683,120]
[420586517,1776274714545,3046.25328006,0.00027297,120]
[420586518,1776274715166,1642.5,0.00025895,120]
[420586519,1776274716569,1642.5,0.00026106,120]
[420586520,1776274717893,1642.5,0.00026318,120]
[420586521,1776274719307,1642.5,0.0002653,120]
[420586522,1776274720679,1642.5,0.00026742,120]
[420586523,1776274722039,1642.5,0.00026953,120]
[420586528,1776274723520,1642.5,0.00027165,120]
[420586529,1776274724770,1642.5,0.00027377,120]
[420586546,1776274766629,2388.0,0.00027397,120]
[420586547,1776274766741,2388.0,0.00027397,120]
[420586548,1776274767064,2388.0,0.00027397,120]
[420586549,1776274767424,2388.0,0.00027397,120]
[420586550,1776274767678,2388.0,0.00027397,120]
[420586551,1776274767970,2388.0,0.00027397,120]
[420586552,1776274768258,2388.0,0.00027397,120]
[420586553,1776274768572,2388.0,0.00027397,120]
[420586554,1776274768832,2388.0,0.00027397,120]
[420586555,1776274769085,814.361,0.00027397,120]
[420586557,1776274769654,587.0,0.00027397,120]
[420586558,1776274769985,587.0,0.00027397,120]
[420586559,1776274770454,587.0,0.00027397,120]
[420586560,1776274770718,587.0,0.00027397,120]
[420586561,1776274770997,587.0,0.00027397,120]
[420586562,1776274771253,587.0,0.00027397,120]
[420586563,1776274771531,587.0,0.00027397,120]
[420586564,1776274771880,587.0,0.00027397,120]
[420586565,1776274772163,587.0,0.00027397,120]
[420586566,1776274772452,587.0,0.00027397,120]
[420586567,1776274775108,272.41987281,0.00018098,120]
[420586568,1776274782366,15075.69452707,0.00027397,120]
[420586570,1776274791666,1000.0,0.00027397,120]
[420586572,1776274803290,966.75,0.0002739,120]
[420586578,1776274829138,2604.0,0.0002739,120]
[420586579,1776274833489,500.0,0.00027397,120]
[420586580,1776274834650,216.80776,0.00027,120]
[420586581,1776274851398,500.0,0.00027397,120]
[420586582,1776274854288,1752.19869391,0.00027397,120]
[420586583,1776274860397,500.0,0.00027397,120]
[420586584,1776274870522,500.0,0.00027397,120]
[420586585,1776274881686,500.0,0.00027397,120]
[420586586,1776274882514,218.0,0.00026,120]
[420586587,1776274883886,218.0,0.000266,120]
[420586588,1776274885324,218.0,0.000272,120]
[420586589,1776274890564,793.47420616,0.00026809,120]
[420586590,1776274891146,500.0,0.00027397,120]
[420586591,1776274891985,200.0,8.979e-05,30]
[420586592,1776274898693,1000.0,0.00027397,120]
[420586593,1776274900570,627.46770836,0.000273,120]
[420586594,1776274901731,500.0,0.00027397,120]
[420586595,1776274914542,500.0,0.00027397,120]
[420586596,1776274923790,500.0,0.00027397,120]
[420586597,1776274932808,500.0,0.00027397,120]
[420586598,1776274941089,500.0,0.00027397,120]
[420586599,1776274948038,2800.0,0.00027397,120]
[420586600,1776274950078,500.0,0.00027397,120]
[420586601,1776274958003,500.0,0.00027397,120]
[420586602,1776274967173,500.0,0.00027397,120]
[420586603,1776274976500,500.0,0.00027397,120]
[420586604,1776274983982,500.0,0.00027397,120]
[420586606,1776274991870,500.0,0.00027397,120]
[420586607,1776274999712,500.0,0.00027397,120]
[420586608,1776275007324,500.0,0.00027397,120]
[420586610,1776275030259,208.0,0.00026,120]
[420586611,1776275070709,200.0,0.0002616,120]
[420586612,1776275097721,500.0,0.00027397,120]
[420586613,1776275106388,500.0,0.00027397,120]
[420586614,1776275115978,500.0,0.00027397,120]
[420586615,1776275124446,500.0,0.00027397,120]
[420586616,1776275130891,200.0,0.00026938,120]
[420586617,1776275132452,500.0,0.00027397,120]
[420586618,1776275140599,500.0,0.00027397,120]
[420586619,1776275173755,500.0,0.00027397,120]
[420586620,1776275181849,500.0,0.00027397,120]
[420586621,1776275189281,1808.44659517,0.00027397,120]
[420586622,1776275191194,500.0,0.00027397,120]
[420586623,1776275191288,3046.25328006,0.00027297,120]
[420586624,1776275193873,14433.72737838,0.00027397,120]
[420586625,1776275194165,1304.06928742,0.00027397,120]
[420586626,1776275194391,8695.25054967,0.00027397,120]
[420586627,1776275194567,16366.59812047,0.00027397,120]
[420586628,1776275201815,500.0,0.00027397,120]
[420586629,1776275204112,600.0,0.00027397,120]
[420586630,1776275210723,495.0,0.00027397,120]
[420586631,1776275210982,495.0,0.00027397,120]
[420586632,1776275211586,495.0,0.00027397,120]
[420586633,1776275211655,206.577,0.00027397,120]
[420586634,1776275212586,2388.0,0.000273,120]
[420586635,1776275212984,2388.0,0.000273,120]
[420586636,1776275213332,2388.0,0.000273,120]
[420586637,1776275213630,2388.0,0.000273,120]
[420586638,1776275213977,2388.0,0.000273,120]
[420586639,1776275214268,2388.0,0.000273,120]
[420586640,1776275214523,2388.0,0.000273,120]
[420586641,1776275214795,2388.0,0.000273,120]
[420586642,1776275215086,2388.0,0.000273,120]
[420586643,1776275215378,814.361,0.000273,120]
[420586644,1776275216585,587.0,0.000273,120]
[420586645,1776275216689,587.0,0.000273,120]
[420586646,1776275216789,587.0,0.000273,120]
[420586647,1776275217058,587.0,0.000273,120]
[420586648,1776275217426,587.0,0.000273,120]
[420586649,1776275217744,587.0,0.000273,120]
[420586650,1776275218065,587.0,0.000273,120]
[420586651,1776275218642,587.0,0.000273,120]
[420586652,1776275218937,587.0,0.000273,120]
[420586653,1776275219458,587.0,0.000273,120]
[420586654,1776275224531,674.0,0.00026809,120]
[420586655,1776275230806,1642.59,0.00025469,120]
[420586656,1776275232207,1642.5,0.0002568,120]
[420586657,1776275233416,1642.5,0.00025892,120]
[420586658,1776275234736,1642.5,0.00026104,120]
[420586659,1776275236161,1642.5,0.00026315,120]
[420586660,1776275237462,1642.5,0.00026527,120]
[420586661,1776275238807,1642.5,0.00026738,120]
[420586662,1776275240162,1642.5,0.0002695,120]
[420586663,1776275241473,1642.5,0.00027162,120]
[420586664,1776275243281,1642.5,0.00027373,120]
[420586665,1776275246777,500.0,0.00027397,120]
[420586666,1776275251666,500.0,0.00027397,120]
[420586667,1776275254652,500.0,0.00027397,120]
[420586668,1776275256700,500.0,0.00027397,120]
[420586669,1776275258731,500.0,0.00027397,120]
[420586670,1776275260895,500.0,0.00027397,120]
[420586671,1776275262477,500.0,0.00027397,120]
[420586672,1776275263986,500.0,0.00027397,120]
[420586673,1776275265889,500.0,0.00027397,120]
[420586674,1776275267518,500.0,0.00027397,120]
[420586675,1776275268717,2956.0,0.00027397,120]
[420586676,1776275272385,500.0,0.00027397,120]
[420586677,1776275274332,500.0,0.00027397,120]
[420586678,1776275275653,500.0,0.00027397,120]
[420586679,1776275277150,500.0,0.00027397,120]
[420586680,1776275278760,500.0,0.00027397,120]
[420586681,1776275280126,500.0,0.00027397,120]
[420586682,1776275282065,500.0,0.00027397,120]
[420586683,1776275283321,500.0,0.00027397,120]
[420586684,1776275285190,500.0,0.00027397,120]
[420586685,1776275285882,500.0,0.00027397,120]
[420586686,1776275287165,500.0,0.00027397,120]
[420586687,1776275288451,500.0,0.00027397,120]
[420586688,1776275289580,500.0,0.00027397,120]
[420586689,1776275290870,500.0,0.00027397,120]
[420586690,1776275292429,500.0,0.00027397,120]
[420586691,1776275293637,500.0,0.00027397,120]
[420586692,1776275295079,500.0,0.00027397,120]
[420586693,1776275296367,500.0,0.00027397,120]
[420586694,1776275297577,500.0,0.00027397,120]
[420586695,1776275299427,500.0,0.00027397,120]
[420586696,1776275300433,500.0,0.00027397,120]
[420586697,1776275301900,500.0,0.00027397,120]
[420586698,1776275303322,500.0,0.00027397,120]
[420586699,1776275303937,300.0,0.00026812,120]
[420586700,1776275304805,500.0,0.00027397,120]
[420586701,1776275305947,500.0,0.00027397,120]
[420586702,1776275320059,500.0,0.00027397,120]
[420586703,1776275343056,218.0,0.00026,120]
[420586704,1776275343892,218.0,0.000266,120]
[420586705,1776275345261,218.0,0.000272,120]
[420586706,1776275359901,500.0,0.00027397,120]
[420586707,1776275361399,500.0,0.00027397,120]
[420586708,1776275362687,500.0,0.00027397,120]
[420586709,1776275364090,500.0,0.00027397,120]
[420586710,1776275366075,500.0,0.00027397,120]
[420586711,1776275366673,500.0,0.00027397,120]
[420586712,1776275368551,500.0,0.00027397,120]
[420586713,1776275370127,500.0,0.00027397,120]
[420586714,1776275371696,500.0,0.00027397,120]
[420586715,1776275372811,500.0,0.00027397,120]
[420586716,1776275379708,500.0,0.00027397,120]
[420586717,1776275381459,500.0,0.00027397,120]
[420586718,1776275382869,500.0,0.00027397,120]
[420586719,1776275404207,966.75,0.0002739,120]
[420586720,1776275414613,459.0,0.00027397,120]
[420586742,1776275433903,674.0,0.00026812,120]
[420586743,1776275433937,-327.0,7.698e-05,2]
[420586744,1776275433965,-1369.97378115,7.698e-05,2]
[420586746,1776275435327,216.80776,0.00027,120]
[420586752,1776275439447,-2451.11280985,7.698e-05,2]
[420586753,1776275439457,-3707.26313703,8.368e-05,10]
[420586754,1776275439469,-283.4857679,8.55e-05,2]
[420586755,1776275439479,-188.079246,8.567e-05,2]
[420586756,1776275439489,-300.0,8.694e-05,2]
[420586757,1776275439499,-537.6845,8.695e-05,2]
[420586758,1776275439509,-2150.738,8.695e-05,2]
[420586759,1776275439518,-295.82948859,8.698e-05,2]
[420586760,1776275439528,-500.0,8.698e-05,2]
[420586761,1776275439539,-478.78534887,8.698e-05,2]
[420586762,1776275439549,-500.0,8.698e-05,2]
[420586763,1776275439561,-594.82426422,8.698e-05,2]
[420586764,1776275439572,-500.0,8.698e-05,2]
[420586765,1776275439582,-500.0,8.698e-05,2]
[420586766,1776275439592,-500.0,8.698e-05,2]
[420586767,1776275439605,-500.0,8.698e-05,2]
[420586768,1776275439616,-600.0,8.698e-05,2]
[420586769,1776275439625,-500.0,8.698e-05,2]
[420586770,1776275439635,-500.0,8.699e-05,2]
[420586771,1776275439646,-500.0,8.699e-05,2]
[420586772,1776275439657,-244.41165185,8.699e-05,2]
[420586774,1776275439667,-500.0,8.699e-05,2]
[420586775,1776275439678,-500.0,8.699e-05,2]
[420586776,1776275439692,-500.0,8.699e-05,2]
[420586777,1776275439702,-500.0,8.699e-05,2]
[420586779,1776275439716,-500.0,8.699e-05,2]
[420586780,1776275439730,-500.0,8.699e-05,2]
[420586781,1776275439741,-500.0,8.699e-05,2]
[420586782,1776275439750,-500.0,8.699e-05,2]
[420586783,1776275439760,-500.0,8.699e-05,2]
[420586784,1776275439770,-500.0,8.699e-05,2]
[420586785,1776275439782,-500.0,8.699e-05,2]
[420586786,1776275439792,-500.0,8.699e-05,2]
[420586787,1776275439802,-500.0,8.699e-05,2]
[420586788,1776275439812,-500.0,8.699e-05,2]
[420586789,1776275439825,-500.0,8.699e-05,2]
[420586790,1776275439834,-500.0,8.699e-05,2]
[420586791,1776275439845,-500.0,8.699e-05,2]
[420586792,1776275439854,-500.0,8.699e-05,2]
[420586793,1776275439871,-173.36072931,8.699e-05,2]
[420586794,1776275439881,-500.0,8.699e-05,2]
[420586795,1776275439891,-500.0,8.699e-05,2]
[420586796,1776275439902,-17532.28896096,8.7e-05,2]
[420586842,1776275441120,-1601.87880519,8.7e-05,2]
[420586843,1776275441136,-414.12432266,8.7e-05,2]
[420586888,1776275443747,576.0,0.0002639,120]
[420586892,1776275443775,-479.87346271,8.613e-05,10]
[420586898,1776275443825,-1021.47584788,8.613e-05,10]
[420587116,1776275446945,-2716.54417083,8.613e-05,10]
[420587117,1776275446955,-565.15786792,8.75e-05,2]
[420587119,1776275446964,-587.742657,8.858e-05,2]
[420587121,1776275446973,-47.28234623,8.858e-05,2]
[420587182,1776275449269,626.0,0.00025001,120]
[420587319,1776275450830,626.0,0.00026251,120]
[420587442,1776275473286,793.47420616,0.00026813,120]
[420587443,1776275494546,208.0,0.00026,120]
[420587444,1776275499991,627.46770836,0.000273,120]
[420587445,1776275522959,1353.0,0.00026813,120]
[420587446,1776275546748,418.41987281,0.00018199,120]
[420587447,1776275570743,1000.0,0.00027397,120]
[420587448,1776275571673,500.0,0.00027397,120]
[420587449,1776275573926,500.0,0.00027397,120]
[420587450,1776275574266,500.0,0.00027397,120]
[420587451,1776275575240,500.0,0.00027397,120]
[420587452,1776275576978,500.0,0.00027397,120]
[420587453,1776275579515,500.0,0.00027397,120]
[420587454,1776275581339,500.0,0.00027397,120]
[420587455,1776275588294,500.0,0.00027397,120]
[420587456,1776275594376,500.0,0.00027397,120]
[420587457,1776275596710,500.0,0.00027397,120]
[420587458,1776275609365,200.0,0.00027397,120]
[420587459,1776275613299,791.0,0.00026813,120]
[420587460,1776275702198,257.0,0.00026813,120]
[420587461,1776275715114,346.0,0.00026296,120]
[420587463,1776275783074,162.0,0.00026813,120]
[420587464,1776275850831,200.0,0.00026779,120]
[420587465,1776276010536,207.0,0.00026272,120]
[420587466,1776276030744,200.0,0.00027017,120]
[420587467,1776276041072,1752.19869391,0.00027397,120]
[420587468,1776276047719,128335.71669813,0.00026,120]
[420587469,1776276052707,2991.07400394,0.00025,120]
[420587470,1776276053282,1213.25551547,0.0002,120]
[420587471,1776276055397,1176.80113243,0.00025,120]
[420587472,1776276059663,2047.63751805,0.0002497,120]
[420587473,1776276059748,536.78028826,0.00025,120]
[420587474,1776276061503,2024.24391873,0.00025,120]
[420587475,1776276062126,7774.8519386,0.00027397,120]
[420587476,1776276062251,760.2454177,0.00026,120]
[420587477,1776276062389,482.16134064,0.00026,120]
[420587478,1776276062445,448.46908979,0.00025,120]
[420587479,1776276067445,655.51536582,0.0002,120]
[420587485,1776276107918,1000.0,0.00027397,120]
[420587487,1776276182216,2050.099,0.00027397,120]
[420587493,1776276270463,200.0,0.00026929,120]
[420587504,1776276321082,555.0,0.00025266,120]
[420587505,1776276322371,555.0,0.00026529,120]
[420587508,1776276338739,188.0,0.00026583,120]
[420587513,1776276444525,1629.35,0.00027,120]
[420587514,1776276450443,200.0,0.00026789,120]
[420587519,1776276510442,200.0,0.00025955,120]
[420587520,1776276546117,640.0,0.00026817,120]
[420587524,1776276609041,277.0,0.00026592,120]
[420587578,1776276632603,-200.0,8.278e-05,2]
[420587580,1776276632613,-200.0,8.278e-05,7]
[420587582,1776276632622,-200.0,8.278e-05,7]
[420587584,1776276632632,-291.65751896,8.278e-05,2]
[420587586,1776276632641,-1863.0,8.278e-05,2]
[420587587,1776276632651,-300.0,8.343e-05,2]
[420587589,1776276632660,-86.7811447,8.344e-05,2]
[420587592,1776276632676,-1076.45481776,8.344e-05,2]
[420587613,1776276635226,161.0,0.00026593,120]
[420587621,1776276638917,-1218.53143714,8.344e-05,2]
[420587622,1776276638927,-4785.64204321,8.444e-05,2]
[420587623,1776276638936,-21999.78439963,8.5e-05,2]
[420587624,1776276638946,-4958.98769025,8.544e-05,2]
[420587625,1776276638955,-5345.94594853,8.644e-05,2]
[420587626,1776276638964,-348.5038139,8.668e-05,2]
[420587627,1776276638974,-9414.7963205,8.668e-05,2]
[420587628,1776276638984,-1593.3912681,8.668e-05,2]
[420587629,1776276638993,-440.8069927,8.668e-05,2]
[420587630,1776276639002,-197.99590511,8.687e-05,2]
[420587631,1776276639011,-14336.62496207,8.9e-05,2]
[420587635,1776276640383,285.0,0.00026817,120]
[420587636,1776276640979,-744.24204284,8.9e-05,2]
[420587857,1776276646733,-23249.84248417,8.9e-05,2]
[420587858,1776276646839,-17143.17803001,8.9e-05,2]
[420587859,1776276772643,640.0,0.00026817,120]
[420587860,1776276868438,1285.0,0.00026817,120]
[420587861,1776276908228,166.0,0.00026603,120]
[420587862,1776276933953,162.0,0.00026604,120]
[420587863,1776276967660,751.0,0.00026807,120]
[420587864,1776277050937,2000.0,0.00027397,120]
[420587865,1776277051844,2000.0,0.00027397,120]
[420587866,1776277051907,2000.0,0.00027397,120]
[420587867,1776277052126,2000.0,0.00027397,120]
[420587868,1776277052365,2000.0,0.00027397,120]
[420587869,1776277052604,2000.0,0.00027397,120]
[420587870,1776277052839,2000.0,0.00027397,120]
[420587871,1776277053081,2000.0,0.00027397,120]
[420587872,1776277053338,2000.0,0.00027397,120]
[420587873,1776277053571,2000.0,0.00027397,120]
[420587874,1776277053804,2000.0,0.00027397,120]
[420587875,1776277054045,2000.0,0.00027397,120]
[420587876,1776277054270,2000.0,0.00027397,120]
[420587877,1776277054495,2000.0,0.00027397,120]
[420587878,1776277054723,2000.0,0.00027397,120]
[420587879,1776277054947,2000.0,0.00027397,120]
[420587880,1776277055175,2000.0,0.00027397,120]
[420587881,1776277055556,2000.0,0.00027397,120]
[420587882,1776277055774,2000.0,0.00027397,120]
[420587883,1776277055992,2000.0,0.00027397,120]
[420587884,1776277056229,2000.0,0.00027397,120]
[420587885,1776277056457,2000.0,0.00027397,120]
[420587886,1776277056682,2000.0,0.00027397,120]
[420587887,1776277056904,2000.0,0.00027397,120]
[420587888,1776277057139,2000.0,0.00027397,120]
[420587889,1776277057370,2000.0,0.00027397,120]
[420587890,1776277057601,2000.0,0.00027397,120]
[420587891,1776277057831,2000.0,0.00027397,120]
[420587892,1776277058060,2000.0,0.00027397,120]
[420587893,1776277058297,2000.0,0.00027397,120]
[420587894,1776277058517,2000.0,0.00027397,120]
[420587895,1776277059581,2000.0,0.00027397,120]
[420587896,1776277059804,2000.0,0.00027397,120]
[420587897,1776277060043,2000.0,0.00027397,120]
[420587898,1776277060279,2000.0,0.00027397,120]
[420587899,1776277060511,2000.0,0.00027397,120]
[420587900,1776277060831,2000.0,0.00027397,120]
[420587901,1776277061788,2000.0,0.00027397,120]
[420587902,1776277061845,2000.0,0.00027397,120]
[420587903,1776277061942,2000.0,0.00027397,120]
[420587904,1776277062162,2000.0,0.00027397,120]
[420587905,1776277062373,2000.0,0.00027397,120]
[420587906,1776277062587,2000.0,0.00027397,120]
[420587907,1776277062798,2000.0,0.00027397,120]
[420587908,1776277063160,2000.0,0.00027397,120]
[420587909,1776277063377,2000.0,0.00027397,120]
[420587910,1776277063597,2000.0,0.00027397,120]
[420587911,1776277063994,2000.0,0.00027397,120]
[420587912,1776277064175,2000.0,0.00027397,120]
[420587913,1776277064460,2000.0,0.00027397,120]
[420587914,1776277064641,2000.0,0.00027397,120]
[420587915,1776277064850,2000.0,0.00027397,120]
[420587916,1776277065085,2000.0,0.00027397,120]
[420587917,1776277065291,333.58222106,0.00027397,120]
[420587918,1776277070022,244.0,0.00026807,120]
[420587919,1776277125887,1100.33932913,0.0002739,120]
[420587920,1776277136889,905.83158217,0.0002739,120]
[420587921,1776277145585,162.0,0.00026807,120]
[420587922,1776277211355,167.0,0.00026453,120]
[420587923,1776277238060,174.0,0.00025067,120]